bitfinex/quotes_BTCUSD_20250604
["timestamp","ask_amount","ask_price","bid_price","bid_amount"]
[1749026256672,0.47016758,105440.0,105430.0,0.30704]
[1749026256870,0.45239515,105440.0,105430.0,0.30704]
[1749026257027,0.47016758,105440.0,105430.0,0.30704]
[1749026257237,0.45239515,105440.0,105430.0,0.30704]
[1749026257667,0.4701674,105440.0,105430.0,0.30704]
[1749026257838,0.45239515,105440.0,105430.0,0.30704]
[1749026258241,0.47016734,105440.0,105430.0,0.30704]
[1749026258451,0.45239515,105440.0,105430.0,0.30704]
[1749026259066,0.45734111,105440.0,105430.0,0.30704]
[1749026259919,0.4751131,105440.0,105430.0,0.30704]
[1749026260123,0.45734111,105440.0,105430.0,0.30704]
[1749026260759,0.45734111,105440.0,105430.0,0.91568]
[1749026261311,0.4751131,105440.0,105430.0,0.91568]
[1749026261490,0.45734111,105440.0,105430.0,0.91568]
[1749026261924,0.4751131,105440.0,105430.0,0.91568]
[1749026262342,0.45734111,105440.0,105430.0,0.91568]
[1749026262760,0.4751131,105440.0,105430.0,0.91568]
[1749026262968,0.45734111,105440.0,105430.0,0.91568]
[1749026263807,0.4751131,105440.0,105430.0,0.91568]
[1749026264018,0.4751131,105440.0,105430.0,0.93198]
[1749026264019,0.002,105440.0,105430.0,0.93198]
[1749026266144,0.002,105440.0,105430.0,0.65902]
[1749026270776,0.002,105440.0,105430.0,0.93198]
[1749026275401,0.002,105440.0,105430.0,0.93186]
[1749026285308,0.01776919,105460.0,105450.0,0.0162]
[1749026285659,0.11039515,105460.0,105450.0,0.4139]
[1749026285876,0.0151,105470.0,105450.0,0.3418]
[1749026286089,0.34,105460.0,105450.0,0.3418]
[1749026287145,0.342,105460.0,105450.0,0.3418]
[1749026287350,0.344,105460.0,105450.0,0.3418]
[1749026292702,0.344,105460.0,105450.0,0.016]
[1749026292927,0.344,105460.0,105450.0,0.41503045]
[1749026293139,0.344,105460.0,105450.0,0.41266]
[1749026296588,0.344,105460.0,105450.0,0.39756]
[1749026297662,0.344,105460.0,105450.0,0.41306]
[1749026297874,0.004,105460.0,105450.0,0.41306]
[1749026298732,0.002,105460.0,105450.0,0.41306]
[1749026298946,0.0282873,105470.0,105450.0,0.41306]
[1749026299156,0.001,105460.0,105450.0,0.41306]
[1749026299361,0.002,105460.0,105450.0,0.41306]
[1749026299566,0.08030392,105480.0,105450.0,0.41306]
[1749026299567,0.05822734,105470.0,105450.0,0.41306]
[1749026299777,0.39822734,105470.0,105450.0,0.41306]
[1749026299978,0.3703,105470.0,105450.0,0.41306]
[1749026300187,0.3703,105470.0,105460.0,0.29156]
[1749026300574,0.3713,105470.0,105460.0,0.29156]
[1749026301217,0.3703,105470.0,105460.0,0.29156]
[1749026301424,0.3723,105470.0,105460.0,0.29160806]
[1749026302256,0.3743,105470.0,105460.0,0.29160806]
[1749026304165,0.40254852,105470.0,105460.0,0.29160806]
[1749026305008,0.40254852,105470.0,105460.0,4.806e-05]
[1749026305214,0.40254852,105470.0,105460.0,0.53716806]
[1749026306845,0.3743,105470.0,105460.0,0.53716806]
[1749026310184,0.3743,105470.0,105460.0,0.81004806]
[1749026315390,0.37373766,105470.0,105460.0,0.81004806]
[1749026316513,0.37373766,105470.0,105460.0,0.81000806]
[1749026317195,0.48413281,105470.0,105460.0,0.81000806]
[1749026320279,0.50189872,105470.0,105460.0,0.81000806]
[1749026320494,0.49321093,105470.0,105460.0,0.81000806]
[1749026320992,0.48413281,105470.0,105460.0,0.81000806]
[1749026322662,0.49322258,105470.0,105460.0,0.81000806]
[1749026323126,0.48413281,105470.0,105460.0,0.81000806]
[1749026323360,0.49322258,105470.0,105460.0,0.81000806]
[1749026324477,0.49322258,105470.0,105460.0,0.89980806]
[1749026324941,0.48413281,105470.0,105460.0,0.89980806]
[1749026325422,0.48413281,105470.0,105460.0,0.60832806]
[1749026325658,0.48413281,105470.0,105460.0,0.89976806]
[1749026325898,0.49322258,105470.0,105460.0,0.89976806]
[1749026326396,0.48413281,105470.0,105460.0,0.89976806]
[1749026332783,0.46939515,105470.0,105460.0,0.89976806]
[1749026335724,0.48579515,105470.0,105460.0,0.89976806]
[1749026337427,0.46939515,105470.0,105460.0,0.89976806]
[1749026343191,0.45439515,105470.0,105460.0,0.89976806]
[1749026344056,0.344,105470.0,105460.0,0.91566806]
[1749026344533,0.344,105470.0,105460.0,0.91189005]
[1749026345231,0.344,105470.0,105460.0,1.21189005]
[1749026345454,0.344,105470.0,105460.0,0.91189005]
[1749026345686,0.344,105470.0,105460.0,0.89599005]
[1749026345915,0.344,105470.0,105460.0,1.19599005]
[1749026346425,0.344,105470.0,105460.0,0.89599005]
[1749026346883,0.344,105470.0,105460.0,1.21119005]
[1749026347116,0.344,105470.0,105460.0,0.91119005]
[1749026349773,0.344,105470.0,105460.0,1.21119005]
[1749026350215,0.344,105470.0,105460.0,0.91119005]
[1749026350436,0.344,105470.0,105460.0,0.89599005]
[1749026352685,0.3594,105470.0,105460.0,0.89599005]
[1749026353573,0.344,105470.0,105460.0,0.91209005]
[1749026354890,0.344,105470.0,105460.0,0.89599005]
[1749026359685,0.344,105470.0,105460.0,0.91149005]
[1749026360117,0.344,105470.0,105460.0,0.92729005]
[1749026360961,0.342,105470.0,105460.0,0.92729005]
[1749026361291,0.343,105470.0,105460.0,0.92729005]
[1749026362130,0.341,105470.0,105460.0,0.92729005]
[1749026365770,0.30764909,105470.0,105460.0,0.92729005]
[1749026366004,0.03553048,105480.0,105470.0,0.0318]
[1749026366005,0.02126369,105480.0,105470.0,0.0318]
[1749026366221,0.02126369,105480.0,105470.0,0.03416979]
[1749026366478,0.02126369,105480.0,105470.0,0.06527537]
[1749026366901,0.02126369,105480.0,105470.0,0.03416979]
[1749026367797,0.02126369,105480.0,105470.0,0.03516979]
[1749026368907,0.02126369,105480.0,105470.0,0.414]
[1749026369121,0.02126369,105480.0,105470.0,0.415]
[1749026369330,0.02126369,105480.0,105470.0,0.3252]
[1749026370817,0.02126369,105480.0,105470.0,0.93344]
[1749026371524,0.02126369,105480.0,105470.0,0.66056]
[1749026371732,0.02126369,105480.0,105470.0,0.415]
[1749026372602,0.02126369,105480.0,105470.0,0.3252]
[1749026380821,0.02126369,105480.0,105470.0,0.93336]
[1749026382168,0.02126369,105480.0,105470.0,0.91716]
[1749026383034,0.02126369,105480.0,105470.0,0.64432]
[1749026384973,0.02126369,105480.0,105470.0,0.39872]
[1749026385438,0.02131075,105480.0,105470.0,0.39872]
[1749026385952,0.02131075,105480.0,105470.0,0.38312]
[1749026386303,0.03706369,105480.0,105470.0,0.29331294]
[1749026387881,0.02126369,105480.0,105470.0,0.29331294]
[1749026391014,0.02126369,105480.0,105470.0,0.90147294]
[1749026394443,0.02126369,105480.0,105470.0,0.38307294]
[1749026394874,0.03706369,105480.0,105470.0,0.38307294]
[1749026396218,0.05266369,105480.0,105470.0,0.38307294]
[1749026396435,0.05266369,105480.0,105470.0,0.29331294]
[1749026400955,0.05266369,105480.0,105470.0,0.90147294]
[1749026402489,0.05251159,105480.0,105470.0,0.90147294]
[1749026429593,0.0156,105480.0,105470.0,0.90147294]
[1749026437174,0.364894,105490.0,105470.0,0.90147294]
[1749026437385,0.381094,105490.0,105480.0,0.08972]
[1749026442039,0.38109399,105490.0,105480.0,0.08972]
[1749026442454,0.38109399,105490.0,105480.0,0.33528]
[1749026444502,0.38109399,105490.0,105480.0,0.24556]
[1749026444714,0.49148914,105490.0,105480.0,0.62656]
[1749026445955,0.50925027,105490.0,105480.0,0.62656]
[1749026447009,0.52701388,105490.0,105480.0,0.33528]
[1749026447224,0.50925027,105490.0,105480.0,0.62652]
[1749026448267,0.52701388,105490.0,105480.0,0.62652]
[1749026448473,0.50925027,105490.0,105480.0,0.89936]
[1749026448674,0.52701388,105490.0,105480.0,0.89936]
[1749026448879,0.50925027,105490.0,105480.0,0.89936]
[1749026450550,0.52701388,105490.0,105480.0,0.89936]
[1749026450755,0.50925027,105490.0,105480.0,0.89936]
[1749026450968,0.52701388,105490.0,105480.0,0.89936]
[1749026451167,0.50925027,105490.0,105480.0,0.89936]
[1749026451429,0.52701388,105490.0,105480.0,0.89936]
[1749026451642,0.50925027,105490.0,105480.0,0.89936]
[1749026451852,0.52701388,105490.0,105480.0,0.89936]
[1749026452087,0.50925027,105490.0,105480.0,0.89936]
[1749026453576,0.52701388,105490.0,105480.0,0.89936]
[1749026453716,0.50925027,105490.0,105480.0,0.89936]
[1749026453923,0.52701388,105490.0,105480.0,0.89936]
[1749026454130,0.50925027,105490.0,105480.0,0.89936]
[1749026454339,0.52701388,105490.0,105480.0,0.89936]
[1749026454549,0.50925027,105490.0,105480.0,0.89936]
[1749026454966,0.52701388,105490.0,105480.0,0.89936]
[1749026455170,0.50925027,105490.0,105480.0,0.89936]
[1749026455826,0.52701388,105490.0,105480.0,0.89936]
[1749026456042,0.50925027,105490.0,105480.0,0.89936]
[1749026456241,0.52701393,105490.0,105480.0,0.89936]
[1749026456414,0.50925027,105490.0,105480.0,0.89936]
[1749026456832,0.52701394,105490.0,105480.0,0.89936]
[1749026457074,0.50925027,105490.0,105480.0,0.89936]
[1749026457502,0.52701394,105490.0,105480.0,0.89936]
[1749026457708,0.50925027,105490.0,105480.0,0.89936]
[1749026458393,0.52701394,105490.0,105480.0,0.89936]
[1749026458642,0.50925027,105490.0,105480.0,0.89936]
[1749026459135,0.52701393,105490.0,105480.0,0.89936]
[1749026459343,0.50925027,105490.0,105480.0,0.89936]
[1749026460707,0.52701393,105490.0,105480.0,0.89936]
[1749026460933,0.50925027,105490.0,105480.0,0.89936]
[1749026461132,0.50924257,105490.0,105480.0,0.89936]
[1749026463459,0.52700624,105490.0,105480.0,0.89936]
[1749026463668,0.52700623,105490.0,105480.0,0.89936]
[1749026463870,0.50924257,105490.0,105480.0,0.89936]
[1749026464153,0.52700624,105490.0,105480.0,0.89936]
[1749026464587,0.54476991,105490.0,105480.0,0.89936]
[1749026464792,0.5447699,105490.0,105480.0,0.89936]
[1749026465044,0.54477026,105490.0,105480.0,0.89936]
[1749026465229,0.5270066,105490.0,105480.0,0.89936]
[1749026465749,0.51792225,105490.0,105480.0,0.89936]
[1749026467068,0.52700676,105490.0,105480.0,0.89936]
[1749026467275,0.53568591,105490.0,105480.0,0.89936]
[1749026467491,0.51792225,105490.0,105480.0,0.89936]
[1749026467718,0.52700722,105490.0,105480.0,0.89936]
[1749026469250,0.54477089,105490.0,105480.0,0.89936]
[1749026470528,0.56253456,105490.0,105480.0,0.89936]
[1749026470739,0.54477089,105490.0,105480.0,0.89936]
[1749026471173,0.53568592,105490.0,105480.0,0.89936]
[1749026471531,0.55344959,105490.0,105480.0,0.89936]
[1749026471735,0.53568592,105490.0,105480.0,0.89936]
[1749026472393,0.55344959,105490.0,105480.0,0.89936]
[1749026472597,0.53568592,105490.0,105480.0,0.89936]
[1749026474241,0.55344959,105490.0,105480.0,0.89936]
[1749026474450,0.53568592,105490.0,105480.0,0.89936]
[1749026474894,0.55344958,105490.0,105480.0,0.89936]
[1749026475106,0.53568592,105490.0,105480.0,0.89936]
[1749026475743,0.55344958,105490.0,105480.0,0.89936]
[1749026475963,0.53568592,105490.0,105480.0,0.89936]
[1749026476169,0.55344959,105490.0,105480.0,0.89936]
[1749026476374,0.53568592,105490.0,105480.0,0.89936]
[1749026476597,0.55344959,105490.0,105480.0,0.89936]
[1749026476806,0.53568592,105490.0,105480.0,0.89936]
[1749026478154,0.55344959,105490.0,105480.0,0.89936]
[1749026478367,0.53568592,105490.0,105480.0,0.89936]
[1749026479035,0.55344959,105490.0,105480.0,0.89936]
[1749026479253,0.53568592,105490.0,105480.0,0.89936]
[1749026479953,0.55344963,105490.0,105480.0,0.89936]
[1749026480167,0.53568592,105490.0,105480.0,0.89936]
[1749026482120,0.55344967,105490.0,105480.0,0.89936]
[1749026482797,0.53568592,105490.0,105480.0,0.89924]
[1749026483457,0.53568592,105490.0,105480.0,0.60812]
[1749026483700,0.53568592,105490.0,105480.0,0.89924]
[1749026483918,0.55345008,105490.0,105480.0,0.60812]
[1749026484136,0.53568592,105490.0,105480.0,0.89924]
[1749026484346,0.55614835,105490.0,105480.0,0.89924]
[1749026484992,0.57391268,105490.0,105480.0,0.89924]
[1749026485210,0.55614835,105490.0,105480.0,0.89924]
[1749026485638,0.55614656,105490.0,105480.0,0.89924]
[1749026487087,0.57391089,105490.0,105480.0,0.89924]
[1749026487294,0.55614656,105490.0,105480.0,0.89924]
[1749026487772,0.54477954,105490.0,105480.0,0.89924]
[1749026489062,0.56254387,105490.0,105480.0,0.89924]
[1749026489487,0.54477954,105490.0,105480.0,0.89924]
[1749026489707,0.53568592,105490.0,105480.0,0.89924]
[1749026490138,0.55345025,105490.0,105480.0,0.89924]
[1749026490529,0.54477828,105490.0,105480.0,0.89924]
[1749026491159,0.54477828,105490.0,105480.0,0.89916]
[1749026491400,0.04674085,105480.0,105460.0,0.03081136]
[1749026491613,0.04674085,105480.0,105470.0,0.89916]
[1749026491614,0.4423209,105480.0,105470.0,0.89916]
[1749026491819,0.4423209,105480.0,105460.0,0.01481136]
[1749026491820,0.55252422,105480.0,105460.0,0.01481136]
[1749026492025,0.11039515,105470.0,105460.0,0.01481136]
[1749026492251,0.15088751,105470.0,105460.0,0.01481136]
[1749026492695,0.15088751,105470.0,105460.0,0.01581136]
[1749026493114,0.15088751,105470.0,105460.0,0.30689136]
[1749026493576,0.15088751,105470.0,105460.0,0.29208]
[1749026493777,0.15325756,105470.0,105460.0,0.29208]
[1749026494012,0.15324662,105470.0,105460.0,0.29208]
[1749026494229,0.15324662,105470.0,105450.0,0.0327]
[1749026494230,0.34,105460.0,105450.0,0.0327]
[1749026494448,0.4358543,105460.0,105450.0,4.813e-05]
[1749026494651,0.4358543,105460.0,105450.0,0.29112813]
[1749026495319,0.4358543,105460.0,105450.0,0.29312813]
[1749026495527,0.4358543,105460.0,105450.0,0.29512813]
[1749026496555,0.4358543,105460.0,105450.0,0.3099426]
[1749026497552,0.4358543,105460.0,105450.0,0.0188626]
[1749026497755,0.4358543,105460.0,105450.0,0.3099426]
[1749026500879,0.4358543,105460.0,105450.0,0.9180226]
[1749026503462,0.4358543,105460.0,105450.0,0.90320813]
[1749026507060,0.45039515,105460.0,105450.0,0.90320813]
[1749026514491,0.45039515,105460.0,105450.0,0.91890813]
[1749026515089,0.45039515,105460.0,105450.0,0.93420813]
[1749026518819,0.07601199,105470.0,105450.0,0.93420813]
[1749026518820,0.03268654,105470.0,105450.0,0.93420813]
[1749026519059,0.48308169,105470.0,105460.0,0.0162]
[1749026520670,0.48308169,105470.0,105460.0,0.0172]
[1749026520902,0.48308169,105470.0,105460.0,0.0182]
[1749026521352,0.4739942,105470.0,105460.0,0.0182]
[1749026521589,0.4830864,105470.0,105460.0,0.1078]
[1749026522062,0.4983864,105470.0,105460.0,0.1078]
[1749026524190,0.4983864,105470.0,105460.0,0.0916]
[1749026525521,0.49838467,105470.0,105460.0,0.0916]
[1749026526288,0.49838467,105470.0,105460.0,0.3372]
[1749026527905,0.49838377,105470.0,105460.0,0.3372]
[1749026529710,0.49838339,105470.0,105460.0,0.3372]
[1749026532165,0.49838339,105470.0,105460.0,0.61012]
[1749026542208,0.49838445,105470.0,105460.0,0.61012]
[1749026548792,0.4892942,105470.0,105460.0,0.61012]
[1749026555431,0.4892942,105470.0,105460.0,0.90092]
[1749026560602,0.4983904,105470.0,105460.0,0.90092]
[1749026562318,0.5147904,105470.0,105460.0,0.90092]
[1749026562931,0.51479041,105470.0,105460.0,0.90092]
[1749026565571,0.51479041,105470.0,105460.0,0.61012]
[1749026565715,0.51479041,105470.0,105460.0,0.90084]
[1749026566917,0.51479035,105470.0,105460.0,0.90084]
[1749026571067,0.5056942,105470.0,105460.0,0.90084]
[1749026571269,0.51479032,105470.0,105460.0,0.90084]
[1749026572633,0.51479032,105470.0,105460.0,0.61012]
[1749026572921,0.51479032,105470.0,105460.0,0.9008]
[1749026575197,0.5147899,105470.0,105460.0,0.9008]
[1749026576618,0.5147899,105470.0,105460.0,0.61012]
[1749026576843,0.5147899,105470.0,105460.0,0.9008]
[1749026579359,0.51478815,105470.0,105460.0,0.9008]
[1749026580547,0.51478815,105470.0,105460.0,0.90076]
[1749026580963,0.51478815,105470.0,105460.0,0.61012]
[1749026581148,0.51478815,105470.0,105460.0,0.90056]
[1749026581830,0.51478758,105470.0,105460.0,0.90056]
[1749026584969,0.51478758,105470.0,105460.0,0.60992]
[1749026585182,0.34,105460.0,105450.0,4.813e-05]
[1749026585393,0.49178853,105460.0,105450.0,0.89856813]
[1749026585796,0.48269515,105460.0,105450.0,0.89856813]
[1749026585995,0.49178823,105460.0,105450.0,0.89856813]
[1749026586406,0.49178823,105460.0,105450.0,0.89956813]
[1749026586637,0.49178823,105460.0,105450.0,0.90056813]
[1749026587641,0.48269515,105460.0,105450.0,0.90056813]
[1749026601677,0.46699515,105460.0,105450.0,0.90056813]
[1749026606236,0.45039515,105460.0,105450.0,0.93296813]
[1749026606907,0.45039515,105460.0,105450.0,0.91686813]
[1749026607837,0.46549515,105460.0,105450.0,0.91686813]
[1749026608111,0.46549515,105460.0,105450.0,0.90056813]
[1749026621325,0.46549515,105460.0,105450.0,0.90040813]
[1749026624250,0.46549515,105460.0,105450.0,0.60996813]
[1749026624490,0.46549515,105460.0,105450.0,0.90040813]
[1749026624923,0.53449076,105460.0,105450.0,0.60996813]
[1749026625134,0.53449076,105460.0,105450.0,0.90040813]
[1749026627060,0.48059515,105460.0,105450.0,0.90040813]
[1749026627696,0.49836467,105460.0,105450.0,0.90040813]
[1749026627918,0.48059515,105460.0,105450.0,0.90040813]
[1749026628153,0.49836471,105460.0,105450.0,0.90040813]
[1749026628366,0.48059515,105460.0,105450.0,0.90040813]
[1749026629026,0.49836471,105460.0,105450.0,0.90040813]
[1749026629239,0.48059515,105460.0,105450.0,0.90040813]
[1749026638534,0.49836431,105460.0,105450.0,0.90040813]
[1749026638746,0.48059515,105460.0,105450.0,0.90040813]
[1749026638943,0.46549515,105460.0,105450.0,0.90040813]
[1749026639358,0.48326435,105460.0,105450.0,0.90040813]
[1749026639514,0.51922456,105460.0,105450.0,0.60996813]
[1749026639749,0.53552456,105460.0,105450.0,0.90032813]
[1749026640001,0.55329397,105460.0,105450.0,0.90032813]
[1749026640347,0.53552456,105460.0,105450.0,0.90032813]
[1749026640557,0.48179515,105460.0,105450.0,0.90032813]
[1749026641981,0.49956434,105460.0,105450.0,0.90032813]
[1749026642187,0.48179515,105460.0,105450.0,0.90032813]
[1749026642675,0.49956435,105460.0,105450.0,0.90032813]
[1749026642836,0.48179515,105460.0,105450.0,0.90032813]
[1749026644107,0.49956455,105460.0,105450.0,0.90032813]
[1749026644293,0.48179515,105460.0,105450.0,0.90032813]
[1749026644489,0.49956455,105460.0,105450.0,0.90032813]
[1749026644713,0.48179515,105460.0,105450.0,0.90032813]
[1749026645566,0.49956455,105460.0,105450.0,0.90032813]
[1749026645780,0.48179515,105460.0,105450.0,0.90032813]
[1749026647609,0.46549515,105460.0,105450.0,0.90032813]
[1749026648028,0.48326455,105460.0,105450.0,0.90032813]
[1749026648170,0.46549515,105460.0,105450.0,0.90032813]
[1749026648763,0.48326455,105460.0,105450.0,0.90032813]
[1749026649159,0.46549515,105460.0,105450.0,0.90032813]
[1749026650261,0.48326455,105460.0,105450.0,0.90032813]
[1749026650487,0.46549515,105460.0,105450.0,0.90032813]
[1749026650698,0.48326455,105460.0,105450.0,0.90032813]
[1749026650917,0.46549515,105460.0,105450.0,0.90032813]
[1749026651190,0.48326455,105460.0,105450.0,0.90032813]
[1749026651423,0.46549515,105460.0,105450.0,0.90032813]
[1749026652741,0.48326427,105460.0,105450.0,0.90032813]
[1749026653185,0.46549515,105460.0,105450.0,0.90032813]
[1749026654084,0.48109515,105460.0,105450.0,0.90032813]
[1749026654598,0.49886428,105460.0,105450.0,0.90032813]
[1749026654740,0.48109515,105460.0,105450.0,0.90032813]
[1749026655963,0.46549515,105460.0,105450.0,0.90032813]
[1749026656981,0.45039515,105460.0,105450.0,0.91692813]
[1749026657796,0.46816389,105460.0,105450.0,0.91692813]
[1749026658006,0.46659515,105460.0,105450.0,0.91692813]
[1749026658505,0.4843639,105460.0,105450.0,0.91692813]
[1749026658705,0.46659515,105460.0,105450.0,0.91692813]
[1749026660751,0.46659515,105460.0,105450.0,0.90032813]
[1749026667407,0.46659515,105460.0,105450.0,0.90020813]
[1749026668688,0.48179515,105460.0,105450.0,0.60996813]
[1749026668960,0.48179515,105460.0,105450.0,0.2476]
[1749026668961,0.53496153,105460.0,105450.0,0.2476]
[1749026669098,0.53496153,105460.0,105420.0,0.0505]
[1749026669099,0.62674549,105460.0,105420.0,0.0505]
[1749026669332,0.36974085,105440.0,105420.0,0.0353]
[1749026669561,0.46559515,105440.0,105420.0,0.0353]
[1749026669705,0.46559515,105440.0,105420.0,0.05397115]
[1749026669907,0.48177901,105440.0,105420.0,0.05397115]
[1749026670368,0.49955156,105440.0,105420.0,0.05397115]
[1749026670526,0.48177901,105440.0,105420.0,0.05397115]
[1749026670725,0.48177901,105440.0,105430.0,0.89796]
[1749026671077,0.48177901,105440.0,105430.0,0.51856]
[1749026671368,0.48177901,105440.0,105430.0,0.89796]
[1749026672415,0.5103572,105440.0,105430.0,0.89796]
[1749026673457,0.52812981,105440.0,105430.0,0.89796]
[1749026673686,0.5103572,105440.0,105430.0,0.89796]
[1749026673889,0.52812981,105440.0,105430.0,0.89796]
[1749026674099,0.5103572,105440.0,105430.0,0.89796]
[1749026674512,0.52812981,105440.0,105430.0,0.89796]
[1749026677298,0.52812981,105440.0,105430.0,0.89796]
[1749026677612,0.5103572,105440.0,105430.0,0.89796]
[1749026678020,0.52812981,105440.0,105430.0,0.89796]
[1749026678410,0.5103572,105440.0,105430.0,0.89796]
[1749026678778,0.52812981,105440.0,105430.0,0.89796]
[1749026679174,0.5103572,105440.0,105430.0,0.89796]
[1749026680178,0.51042304,105440.0,105430.0,0.89796]
[1749026680376,0.52819565,105440.0,105430.0,0.89796]
[1749026680593,0.51042304,105440.0,105430.0,0.89796]
[1749026680961,0.52819564,105440.0,105430.0,0.89796]
[1749026681164,6.584e-05,105430.0,105420.0,0.0353]
[1749026681367,6.584e-05,105430.0,105420.0,0.12446]
[1749026681763,6.584e-05,105430.0,105420.0,0.14016]
[1749026682438,0.5103572,105440.0,105420.0,0.43033416]
[1749026682644,0.5103572,105440.0,105420.0,0.43233416]
[1749026682854,0.5103572,105440.0,105420.0,0.43433416]
[1749026683785,0.5103572,105440.0,105420.0,0.41663416]
[1749026683998,0.5103572,105440.0,105420.0,0.41863416]
[1749026684239,0.5103572,105440.0,105420.0,0.41663416]
[1749026684414,0.5103572,105440.0,105420.0,0.41863416]
[1749026685918,0.52812981,105440.0,105420.0,0.41863416]
[1749026687845,0.52812981,105440.0,105420.0,0.41863416]
[1749026688045,0.5103572,105440.0,105420.0,0.41863416]
[1749026689324,0.52812981,105440.0,105420.0,0.41863416]
[1749026689532,0.5103572,105440.0,105420.0,0.41863416]
[1749026690128,0.52812981,105440.0,105420.0,0.41863416]
[1749026690339,0.5103572,105440.0,105420.0,0.41863416]
[1749026690975,0.52812981,105440.0,105430.0,0.51864]
[1749026691403,0.5103572,105440.0,105430.0,0.51864]
[1749026693067,0.54590242,105440.0,105430.0,0.51864]
[1749026693235,0.52812981,105440.0,105430.0,0.51864]
[1749026695316,0.54590242,105440.0,105430.0,0.51864]
[1749026695498,0.52812981,105440.0,105430.0,0.51864]
[1749026697244,0.54590236,105440.0,105430.0,0.51864]
[1749026697473,0.52812981,105440.0,105430.0,0.51864]
[1749026697904,0.54590236,105440.0,105430.0,0.51864]
[1749026698107,0.52812981,105440.0,105430.0,0.51864]
[1749026698896,0.54590236,105440.0,105430.0,0.51864]
[1749026699161,0.52812981,105440.0,105430.0,0.51864]
[1749026699364,0.52812981,105440.0,105430.0,0.53434]
[1749026699365,0.51292981,105440.0,105430.0,0.53434]
[1749026699575,0.53070192,105440.0,105430.0,0.53434]
[1749026699799,0.51292981,105440.0,105430.0,0.53434]
[1749026700675,0.03395647,105440.0,105430.0,0.84954]
[1749026700895,0.02913368,105460.0,105440.0,0.0309]
[1749026701102,0.47787631,105460.0,105450.0,0.37924]
[1749026701331,0.48104467,105460.0,105450.0,0.37924]
[1749026702034,0.48204467,105460.0,105450.0,0.37924]
[1749026702686,0.48304467,105460.0,105450.0,0.37924]
[1749026703168,0.48204467,105460.0,105450.0,0.37924]
[1749026703356,0.48404467,105460.0,105450.0,0.37924]
[1749026703703,0.48604467,105460.0,105450.0,0.37924]
[1749026703913,0.47074467,105460.0,105450.0,0.37924]
[1749026704124,0.47074467,105460.0,105450.0,0.39464]
[1749026708343,0.48734467,105460.0,105450.0,0.39464]
[1749026708760,0.47074467,105460.0,105450.0,0.39464]
[1749026709375,0.48584467,105460.0,105450.0,0.37924]
[1749026713218,0.50361284,105460.0,105450.0,0.37924]
[1749026713459,0.50361285,105460.0,105450.0,0.37924]
[1749026713674,0.48584467,105460.0,105450.0,0.37924]
[1749026714987,0.50361285,105460.0,105450.0,0.37924]
[1749026715196,0.48584467,105460.0,105450.0,0.37924]
[1749026715409,0.50361283,105460.0,105450.0,0.37916]
[1749026715610,0.48584467,105460.0,105450.0,0.37916]
[1749026716030,0.50361283,105460.0,105450.0,0.37916]
[1749026716187,0.48584467,105460.0,105450.0,0.37916]
[1749026716399,0.50361284,105460.0,105450.0,0.37916]
[1749026716597,0.48584467,105460.0,105450.0,0.37916]
[1749026717847,0.48584467,105460.0,105450.0,0.6248]
[1749026718645,0.50361288,105460.0,105450.0,0.6248]
[1749026718847,0.48584467,105460.0,105450.0,0.6248]
[1749026722247,0.50361287,105460.0,105450.0,0.6248]
[1749026722444,0.48584467,105460.0,105450.0,0.6248]
[1749026722580,0.48584467,105460.0,105450.0,0.89776]
[1749026723186,0.50361286,105460.0,105450.0,0.89776]
[1749026723393,0.48584467,105460.0,105450.0,0.89776]
[1749026724702,0.50361288,105460.0,105450.0,0.89776]
[1749026725106,0.48584467,105460.0,105450.0,0.89776]
[1749026725317,0.50361288,105460.0,105450.0,0.89776]
[1749026725531,0.48584467,105460.0,105450.0,0.89776]
[1749026725945,0.50361288,105460.0,105450.0,0.89776]
[1749026726163,0.48584467,105460.0,105450.0,0.89776]
[1749026727455,0.50361288,105460.0,105450.0,0.89776]
[1749026727913,0.48584467,105460.0,105450.0,0.89768]
[1749026728587,0.50361288,105460.0,105450.0,0.89768]
[1749026728805,0.48584467,105460.0,105450.0,0.89768]
[1749026729026,0.48584467,105460.0,105450.0,0.5186]
[1749026729261,0.50361298,105460.0,105450.0,0.8976]
[1749026729497,0.50361299,105460.0,105450.0,0.8976]
[1749026729721,0.48584467,105460.0,105450.0,0.8976]
[1749026730189,0.50361304,105460.0,105450.0,0.8976]
[1749026730411,0.50361307,105460.0,105450.0,0.8976]
[1749026730638,0.48584467,105460.0,105450.0,0.8976]
[1749026731766,0.50361307,105460.0,105450.0,0.8976]
[1749026732253,0.48584467,105460.0,105450.0,0.8976]
[1749026732962,0.50361306,105460.0,105450.0,0.8976]
[1749026733182,0.48584467,105460.0,105450.0,0.8976]
[1749026733886,0.50361306,105460.0,105450.0,0.8976]
[1749026734112,0.48584467,105460.0,105450.0,0.8976]
[1749026734341,0.50361306,105460.0,105450.0,0.8976]
[1749026734573,0.48584467,105460.0,105450.0,0.8976]
[1749026735001,0.50361306,105460.0,105450.0,0.8976]
[1749026735246,0.48584467,105460.0,105450.0,0.8976]
[1749026735704,0.50361306,105460.0,105450.0,0.8976]
[1749026736146,0.48584467,105460.0,105450.0,0.8976]
[1749026737332,0.50361305,105460.0,105450.0,0.8976]
[1749026737589,0.48584467,105460.0,105450.0,0.8976]
[1749026738288,0.50361305,105460.0,105450.0,0.8976]
[1749026738523,0.48584467,105460.0,105450.0,0.8976]
[1749026739464,0.50361305,105460.0,105450.0,0.8976]
[1749026739705,0.48584467,105460.0,105450.0,0.8976]
[1749026741534,0.50361305,105460.0,105450.0,0.8976]
[1749026741775,0.48584467,105460.0,105450.0,0.8976]
[1749026742004,0.50361305,105460.0,105450.0,0.8976]
[1749026742237,0.48584467,105460.0,105450.0,0.8976]
[1749026742441,0.50361305,105460.0,105450.0,0.8976]
[1749026742639,0.48584467,105460.0,105450.0,0.8976]
[1749026744774,0.48584467,105460.0,105450.0,0.89752]
[1749026745433,0.50361305,105460.0,105450.0,0.89752]
[1749026745668,0.48584467,105460.0,105450.0,0.89752]
[1749026746135,0.50361305,105460.0,105450.0,0.89752]
[1749026746410,0.48584467,105460.0,105450.0,0.89752]
[1749026746628,0.50361305,105460.0,105450.0,0.89752]
[1749026747075,0.48584467,105460.0,105450.0,0.89752]
[1749026748335,0.50361305,105460.0,105450.0,0.89752]
[1749026748536,0.48584467,105460.0,105450.0,0.89752]
[1749026748737,0.50361305,105460.0,105450.0,0.89752]
[1749026748955,0.48584467,105460.0,105450.0,0.89752]